[Event "*** Titled Tuesday Blitz"]
[Site "Chess.com"]
[Date "2020.11.24"]
[Round "2"]
[White "HrvojeZagreb"]
[Black "witcher8"]
[Result "1-0"]
[WhiteElo "2251"]
[BlackElo "2432"]
[TimeControl "180+1"]
[EndTime "10:32:44 PST"]
[Termination "HrvojeZagreb won by checkmate"]

1. d4 {[%clk 0:03:00.9]} 1... Nf6 {[%clk 0:02:59.8]} 2. Bf4 {[%clk 0:02:59.9]}
2... g6 {[%clk 0:02:58.5]} 3. Nc3 {[%clk 0:02:59.5]} 3... d5 {[%clk 0:02:58.1]}
4. e3 {[%clk 0:02:59.6]} 4... Bg7 {[%clk 0:02:57.7]} 5. h4 {[%clk 0:02:59.5]}
5... h6 {[%clk 0:02:57.3]} 6. Nf3 {[%clk 0:02:49.1]} 6... O-O {[%clk 0:02:56.7]}
7. Qd2 {[%clk 0:02:42.2]} 7... a6 {[%clk 0:02:54.7]} 8. Ne5 {[%clk 0:02:39.6]}
8... b5 {[%clk 0:02:47.9]} 9. a3 {[%clk 0:02:37.6]} 9... Nbd7 {[%clk 0:02:31]}
10. f3 {[%clk 0:02:20.4]} 10... c5 {[%clk 0:02:26.6]} 11. g4 {[%clk 0:01:47.7]}
11... cxd4 {[%clk 0:01:54.8]} 12. exd4 {[%clk 0:01:48.6]} 12... Qb6 {[%clk
0:01:47.6]} 13. O-O-O {[%clk 0:00:53.8]} 13... Kh7 {[%clk 0:01:29.8]} 14. Nxd7
{[%clk 0:00:49.2]} 14... Bxd7 {[%clk 0:01:21]} 15. g5 {[%clk 0:00:48.2]} 15...
Nh5 {[%clk 0:01:18.6]} 16. Nxd5 {[%clk 0:00:45.3]} 16... Qb7 {[%clk 0:01:06.1]}
17. gxh6 {[%clk 0:00:33.1]} 17... Qxd5 {[%clk 0:00:54]} 18. hxg7 {[%clk
0:00:31.1]} 18... Nxg7 {[%clk 0:00:51.1]} 19. h5 {[%clk 0:00:26.5]} 19... Nxh5
{[%clk 0:00:51.1]} 20. Be5 {[%clk 0:00:21.7]} 20... Rac8 {[%clk 0:00:34.9]} 21.
Rxh5+ {[%clk 0:00:20.2]} 21... gxh5 {[%clk 0:00:33.1]} 22. Qg5 {[%clk
0:00:15.7]} 22... f6 {[%clk 0:00:33.2]} 23. Bd3+ {[%clk 0:00:14.3]} 23... Kh8
{[%clk 0:00:19.7]} 24. Qh6+ {[%clk 0:00:10.7]} 24... Kg8 {[%clk 0:00:19.5]} 25.
Qh7# {[%clk 0:00:10.9]} 1-0

[Event "*** Titled Tuesday Blitz"]
[Site "Chess.com"]
[Date "2020.11.24"]
[Round "2"]
[White "MIJuanReyesRosa"]
[Black "AliKa2810"]
[Result "0-1"]
[WhiteElo "2070"]
[BlackElo "2592"]
[TimeControl "180+1"]
[EndTime "10:32:46 PST"]
[Termination "AliKa2810 won on time"]

1. e4 {[%clk 0:02:57.9]} 1... c6 {[%clk 0:02:59.6]} 2. d4 {[%clk 0:02:57.4]}
2... d5 {[%clk 0:03:00.3]} 3. exd5 {[%clk 0:02:57.8]} 3... cxd5 {[%clk
0:03:01.2]} 4. c4 {[%clk 0:02:58.7]} 4... Nf6 {[%clk 0:03:00.2]} 5. Nc3 {[%clk
0:02:58.8]} 5... Nc6 {[%clk 0:02:56.5]} 6. Bg5 {[%clk 0:02:57.4]} 6... e6 {[%clk
0:02:50.5]} 7. Nf3 {[%clk 0:02:56.3]} 7... Bb4 {[%clk 0:02:49.3]} 8. cxd5 {[%clk
0:02:47.9]} 8... exd5 {[%clk 0:02:43.3]} 9. Be2 {[%clk 0:02:39.6]} 9... O-O
{[%clk 0:02:39.5]} 10. O-O {[%clk 0:02:39.3]} 10... Be6 {[%clk 0:02:36.2]} 11.
Ne5 {[%clk 0:02:36.2]} 11... h6 {[%clk 0:02:33.7]} 12. Bh4 {[%clk 0:02:27.8]}
12... Be7 {[%clk 0:02:27.2]} 13. Nxc6 {[%clk 0:02:14.8]} 13... bxc6 {[%clk
0:02:28.1]} 14. Qa4 {[%clk 0:02:10.8]} 14... Qb6 {[%clk 0:02:25]} 15. Rac1
{[%clk 0:01:37.7]} 15... Qxb2 {[%clk 0:02:16.6]} 16. Rc2 {[%clk 0:01:28.3]}
16... Qb7 {[%clk 0:02:06.6]} 17. Rb1 {[%clk 0:01:25.6]} 17... Qd7 {[%clk
0:02:06.1]} 18. Rcb2 {[%clk 0:01:16.5]} 18... Bf5 {[%clk 0:01:54.6]} 19. Rb7
{[%clk 0:01:07.3]} 19... Qe6 {[%clk 0:01:54.1]} 20. R1b2 {[%clk 0:00:49.2]}
20... g5 {[%clk 0:01:07.9]} 21. Bg3 {[%clk 0:00:48]} 21... Nd7 {[%clk
0:00:55.7]} 22. h3 {[%clk 0:00:37]} 22... Bf6 {[%clk 0:00:55.1]} 23. Rxa7 {[%clk
0:00:30.9]} 23... Nc5 {[%clk 0:00:49.2]} 24. dxc5 {[%clk 0:00:18.2]} 24... Rxa7
{[%clk 0:00:49.5]} 25. Qxa7 {[%clk 0:00:15.7]} 25... Bxc3 {[%clk 0:00:50]} 26.
Qb7 {[%clk 0:00:02.2]} 26... Bxb2 {[%clk 0:00:47.6]} 27. Qxb2 {[%clk 0:00:01.2]}
27... Re8 {[%clk 0:00:43.7]} 0-1

[Event "*** Titled Tuesday Blitz"]
[Site "Chess.com"]
[Date "2020.11.24"]
[Round "2"]
[White "Tenamu"]
[Black "bazar-wokzal"]
[Result "1-0"]
[WhiteElo "2321"]
[BlackElo "2531"]
[TimeControl "180+1"]
[EndTime "10:32:51 PST"]
[Termination "Tenamu won by checkmate"]

1. d4 {[%clk 0:03:00.9]} 1... Nf6 {[%clk 0:02:59.8]} 2. Nc3 {[%clk 0:02:54.1]}
2... d5 {[%clk 0:02:58.7]} 3. Bf4 {[%clk 0:02:50.7]} 3... g6 {[%clk 0:02:58.5]}
4. Qd2 {[%clk 0:02:50.3]} 4... Bg7 {[%clk 0:02:58.4]} 5. h4 {[%clk 0:02:50.6]}
5... c6 {[%clk 0:02:50.1]} 6. f3 {[%clk 0:02:48.9]} 6... b5 {[%clk 0:02:48.9]}
7. a3 {[%clk 0:02:48.4]} 7... Nbd7 {[%clk 0:02:47.1]} 8. Bh6 {[%clk 0:02:48]}
8... Bxh6 {[%clk 0:02:41.8]} 9. Qxh6 {[%clk 0:02:48.9]} 9... Nb6 {[%clk
0:02:41.7]} 10. g4 {[%clk 0:02:45.6]} 10... a5 {[%clk 0:02:33]} 11. h5 {[%clk
0:02:38.7]} 11... Qd6 {[%clk 0:02:15]} 12. Kf2 {[%clk 0:02:17.7]} 12... Bxg4
{[%clk 0:02:04.5]} 13. hxg6 {[%clk 0:02:09.5]} 13... fxg6 {[%clk 0:02:03.8]} 14.
Bh3 {[%clk 0:02:04.4]} 14... Bxh3 {[%clk 0:01:58.8]} 15. Nxh3 {[%clk 0:02:05.3]}
15... O-O-O {[%clk 0:01:54.1]} 16. Qf4 {[%clk 0:01:56.4]} 16... Rhf8 {[%clk
0:01:39.2]} 17. Qxd6 {[%clk 0:01:54.7]} 17... Rxd6 {[%clk 0:01:38.7]} 18. Ng5
{[%clk 0:01:53.8]} 18... h5 {[%clk 0:01:34.3]} 19. Kg3 {[%clk 0:01:52.3]} 19...
Nc4 {[%clk 0:01:31.6]} 20. b3 {[%clk 0:01:51.6]} 20... Ne3 {[%clk 0:01:31.3]}
21. Rac1 {[%clk 0:01:50.1]} 21... Nf5+ {[%clk 0:01:30.9]} 22. Kf2 {[%clk
0:01:49.1]} 22... Nxd4 {[%clk 0:01:31.3]} 23. b4 {[%clk 0:01:43.1]} 23... axb4
{[%clk 0:01:27.9]} 24. axb4 {[%clk 0:01:44]} 24... e5 {[%clk 0:01:24.4]} 25. Ra1
{[%clk 0:01:41.5]} 25... Kb7 {[%clk 0:01:22.5]} 26. Ra2 {[%clk 0:01:36.6]} 26...
Ne6 {[%clk 0:01:10.3]} 27. Rha1 {[%clk 0:01:23.6]} 27... Nc7 {[%clk 0:00:55.2]}
28. Ra7+ {[%clk 0:01:19.3]} 28... Kb6 {[%clk 0:00:53.4]} 29. e3 {[%clk
0:01:06.4]} 29... d4 {[%clk 0:00:49.3]} 30. Nce4 {[%clk 0:01:05]} 30... Nxe4+
{[%clk 0:00:23.3]} 31. Nxe4 {[%clk 0:01:05.9]} 31... dxe3+ {[%clk 0:00:23.5]}
32. Ke2 {[%clk 0:01:03.3]} 32... Rd5 {[%clk 0:00:18]} 33. Nc5 {[%clk 0:01:02]}
33... Rb8 {[%clk 0:00:17.1]} 34. c4 {[%clk 0:00:53.9]} 34... bxc4 {[%clk
0:00:16.9]} 35. R1a5 {[%clk 0:00:45]} 35... c3 {[%clk 0:00:11.8]} 36. Na4#
{[%clk 0:00:44.4]} 1-0

[Event "*** Titled Tuesday Blitz"]
[Site "Chess.com"]
[Date "2020.11.24"]
[Round "2"]
[White "GurevichMikhail"]
[Black "Mikasinski"]
[Result "1-0"]
[WhiteElo "2604"]
[BlackElo "2324"]
[TimeControl "180+1"]
[EndTime "10:32:53 PST"]
[Termination "GurevichMikhail won on time"]

1. c4 {[%clk 0:03:00.9]} 1... e5 {[%clk 0:03:00]} 2. Nc3 {[%clk 0:02:59.8]} 2...
Nc6 {[%clk 0:03:00.6]} 3. Nf3 {[%clk 0:02:57.5]} 3... Nf6 {[%clk 0:02:55.4]} 4.
a3 {[%clk 0:02:56.2]} 4... d5 {[%clk 0:02:34.3]} 5. cxd5 {[%clk 0:02:55.3]} 5...
Nxd5 {[%clk 0:02:35.2]} 6. Qc2 {[%clk 0:02:54.9]} 6... Be6 {[%clk 0:02:34]} 7.
e3 {[%clk 0:02:51.8]} 7... a6 {[%clk 0:02:32.5]} 8. b4 {[%clk 0:02:48.3]} 8...
Be7 {[%clk 0:02:28]} 9. Bb2 {[%clk 0:02:47.3]} 9... Nxc3 {[%clk 0:02:25.8]} 10.
Bxc3 {[%clk 0:02:45.3]} 10... Bf6 {[%clk 0:02:26]} 11. Bd3 {[%clk 0:02:41.7]}
11... Qd7 {[%clk 0:02:18.8]} 12. Be4 {[%clk 0:02:39.5]} 12... h6 {[%clk
0:02:02.3]} 13. O-O {[%clk 0:02:36.5]} 13... O-O {[%clk 0:02:02.3]} 14. Rfd1
{[%clk 0:02:31.3]} 14... Rfe8 {[%clk 0:01:57.1]} 15. d3 {[%clk 0:02:29.4]} 15...
Rad8 {[%clk 0:01:54.4]} 16. Qb2 {[%clk 0:02:27.9]} 16... Bd5 {[%clk 0:01:53]}
17. Bxd5 {[%clk 0:02:23.1]} 17... Qxd5 {[%clk 0:01:53.2]} 18. e4 {[%clk
0:02:22.4]} 18... Qe6 {[%clk 0:01:52.5]} 19. a4 {[%clk 0:02:20.6]} 19... b5
{[%clk 0:01:42.6]} 20. axb5 {[%clk 0:02:19.5]} 20... axb5 {[%clk 0:01:43.5]} 21.
Qa2 {[%clk 0:02:18.7]} 21... Qxa2 {[%clk 0:01:36.9]} 22. Rxa2 {[%clk 0:02:17.9]}
22... Ra8 {[%clk 0:01:37.2]} 23. Rda1 {[%clk 0:02:15.4]} 23... Rxa2 {[%clk
0:01:36.2]} 24. Rxa2 {[%clk 0:02:15.3]} 24... Rd8 {[%clk 0:01:36.3]} 25. Ne1
{[%clk 0:02:14.5]} 25... Be7 {[%clk 0:01:34.4]} 26. Rb2 {[%clk 0:02:10]} 26...
Ra8 {[%clk 0:01:32.5]} 27. Kf1 {[%clk 0:02:08.9]} 27... Ra3 {[%clk 0:01:18.4]}
28. Bd2 {[%clk 0:02:07.5]} 28... Ra1 {[%clk 0:00:56.3]} 29. f3 {[%clk
0:02:03.3]} 29... Ra4 {[%clk 0:00:25.9]} 30. Nc2 {[%clk 0:02:01.6]} 30... f6
{[%clk 0:00:25.1]} 31. Ke2 {[%clk 0:02:00.3]} 31... Kf7 {[%clk 0:00:25.6]} 32.
Bc3 {[%clk 0:01:59.9]} 32... Ke6 {[%clk 0:00:26.3]} 33. g3 {[%clk 0:01:59.1]}
33... Bd6 {[%clk 0:00:26.3]} 34. Ke3 {[%clk 0:01:53.7]} 34... g6 {[%clk
0:00:26.3]} 35. f4 {[%clk 0:01:43.7]} 35... h5 {[%clk 0:00:20.8]} 36. Rb3 {[%clk
0:01:17.9]} 36... Ra2 {[%clk 0:00:18.5]} 37. Na3 {[%clk 0:01:15.7]} 37... Rxh2
{[%clk 0:00:08.2]} 38. fxe5 {[%clk 0:01:11]} 38... Nxe5 {[%clk 0:00:03.6]} 39.
Nxb5 {[%clk 0:01:09.5]} 39... Ng4+ {[%clk 0:00:03.9]} 40. Kd4 {[%clk 0:01:09]}
40... Be5+ {[%clk 0:00:02.9]} 41. Kc5 {[%clk 0:01:08.4]} 41... Bxg3 {[%clk
0:00:01.8]} 42. Kc6 {[%clk 0:01:06.9]} 42... h4 {[%clk 0:00:01.7]} 43. Nxc7+
{[%clk 0:01:05.1]} 1-0

[Event "*** Titled Tuesday Blitz"]
[Site "Chess.com"]
[Date "2020.11.24"]
[Round "2"]
[White "Gogolev_Artemy"]
[Black "Tsyhanchuk_Stanislav"]
[Result "1-0"]
[WhiteElo "2467"]
[BlackElo "2271"]
[TimeControl "180+1"]
[EndTime "10:32:53 PST"]
[Termination "Gogolev_Artemy won on time"]

1. Nf3 {[%clk 0:03:00.9]} 1... c5 {[%clk 0:02:59.8]} 2. c4 {[%clk 0:03:00.4]}
2... Nf6 {[%clk 0:02:56.1]} 3. Nc3 {[%clk 0:02:58.6]} 3... e6 {[%clk 0:02:56.1]}
4. g3 {[%clk 0:02:52.9]} 4... b6 {[%clk 0:02:55.9]} 5. Bg2 {[%clk 0:02:52.9]}
5... Bb7 {[%clk 0:02:56.5]} 6. O-O {[%clk 0:02:53.3]} 6... Be7 {[%clk 0:02:57]}
7. d4 {[%clk 0:02:53.6]} 7... cxd4 {[%clk 0:02:55.3]} 8. Qxd4 {[%clk 0:02:54.5]}
8... O-O {[%clk 0:02:54.3]} 9. Rd1 {[%clk 0:02:54.3]} 9... Nc6 {[%clk
0:02:54.5]} 10. Qd3 {[%clk 0:02:48.1]} 10... Qc8 {[%clk 0:02:29.5]} 11. Bg5
{[%clk 0:02:32.6]} 11... Rd8 {[%clk 0:02:27.1]} 12. Bxf6 {[%clk 0:02:27.5]}
12... Bxf6 {[%clk 0:02:17.6]} 13. Rac1 {[%clk 0:02:20.6]} 13... a6 {[%clk
0:01:44.6]} 14. Ne4 {[%clk 0:02:09.1]} 14... Be7 {[%clk 0:01:38.3]} 15. Nd6
{[%clk 0:01:57.9]} 15... Bxd6 {[%clk 0:01:04.2]} 16. Qxd6 {[%clk 0:01:58.8]}
16... Qb8 {[%clk 0:01:04.2]} 17. Qd3 {[%clk 0:01:30.3]} 17... d5 {[%clk
0:00:14.1]} 18. Ng5 {[%clk 0:01:23.5]} 18... dxc4 {[%clk 0:00:12.3]} 19. Qxh7+
{[%clk 0:01:12.2]} 19... Kf8 {[%clk 0:00:12]} 20. Qh8+ {[%clk 0:01:07.9]} 20...
Ke7 {[%clk 0:00:12]} 21. Qxg7 {[%clk 0:01:08.2]} 21... Ne5 {[%clk 0:00:07]} 22.
Bxb7 {[%clk 0:01:03.9]} 22... Rg8 {[%clk 0:00:04.5]} 23. Qh6 {[%clk 0:00:34.1]}
23... Qxb7 {[%clk 0:00:04.7]} 24. Qh4 {[%clk 0:00:32.4]} 24... f6 {[%clk
0:00:04]} 25. Qh7+ {[%clk 0:00:31]} 25... Ke8 {[%clk 0:00:01.2]} 26. Qxb7 {[%clk
0:00:31.1]} 1-0

[Event "*** Titled Tuesday Blitz"]
[Site "Chess.com"]
[Date "2020.11.24"]
[Round "2"]
[White "2nd_life"]
[Black "frederiksvane"]
[Result "0-1"]
[WhiteElo "2486"]
[BlackElo "2728"]
[TimeControl "180+1"]
[EndTime "10:32:56 PST"]
[Termination "frederiksvane won by resignation"]

1. e4 {[%clk 0:03:00.9]} 1... c5 {[%clk 0:02:59.9]} 2. Nf3 {[%clk 0:02:58.8]}
2... d6 {[%clk 0:02:57.2]} 3. Bb5+ {[%clk 0:02:57.4]} 3... Bd7 {[%clk
0:02:53.6]} 4. c4 {[%clk 0:02:57]} 4... Nf6 {[%clk 0:02:47.5]} 5. Nc3 {[%clk
0:02:55.6]} 5... g6 {[%clk 0:02:47.3]} 6. d4 {[%clk 0:02:54]} 6... cxd4 {[%clk
0:02:47.3]} 7. Nxd4 {[%clk 0:02:43]} 7... Bg7 {[%clk 0:02:47.3]} 8. O-O {[%clk
0:02:41.6]} 8... O-O {[%clk 0:02:44.7]} 9. Be3 {[%clk 0:02:35.3]} 9... Ng4
{[%clk 0:02:38.8]} 10. Bg5 {[%clk 0:02:31.7]} 10... h6 {[%clk 0:02:37]} 11. Bh4
{[%clk 0:02:28.7]} 11... Nc6 {[%clk 0:02:35.6]} 12. Bxc6 {[%clk 0:02:09.3]}
12... bxc6 {[%clk 0:02:34.7]} 13. b3 {[%clk 0:02:00.2]} 13... Qb6 {[%clk
0:02:19.4]} 14. Nde2 {[%clk 0:01:55.9]} 14... g5 {[%clk 0:02:14]} 15. Bg3 {[%clk
0:01:55.5]} 15... f5 {[%clk 0:02:14.4]} 16. exf5 {[%clk 0:01:52]} 16... Bxf5
{[%clk 0:02:14.2]} 17. h3 {[%clk 0:01:48.1]} 17... Ne5 {[%clk 0:02:07.4]} 18.
Kh2 {[%clk 0:01:35.3]} 18... Rf7 {[%clk 0:02:02.5]} 19. Na4 {[%clk 0:01:02.4]}
19... Qb7 {[%clk 0:01:44.6]} 20. Nd4 {[%clk 0:00:57.9]} 20... Raf8 {[%clk
0:01:20.1]} 21. Nxf5 {[%clk 0:00:56.1]} 21... Rxf5 {[%clk 0:01:20.2]} 22. Qc2
{[%clk 0:00:45.5]} 22... c5 {[%clk 0:01:05.7]} 23. Rae1 {[%clk 0:00:42.8]} 23...
Nc6 {[%clk 0:00:58.7]} 24. Qe4 {[%clk 0:00:36.4]} 24... Qd7 {[%clk 0:00:47.7]}
25. Qe6+ {[%clk 0:00:25.4]} 25... Qxe6 {[%clk 0:00:45.6]} 26. Rxe6 {[%clk
0:00:26.3]} 26... Kf7 {[%clk 0:00:40.2]} 27. Re4 {[%clk 0:00:26.1]} 27... Nd4
{[%clk 0:00:31.6]} 28. f3 {[%clk 0:00:24.1]} 28... Bf6 {[%clk 0:00:23.4]} 29.
Rfe1 {[%clk 0:00:23.7]} 29... Rb8 {[%clk 0:00:20.1]} 30. Nxc5 {[%clk 0:00:21.8]}
30... Rxc5 {[%clk 0:00:19.8]} 0-1

[Event "*** Titled Tuesday Blitz"]
[Site "Chess.com"]
[Date "2020.11.24"]
[Round "2"]
[White "Morshynska"]
[Black "Shuvalov"]
[Result "0-1"]
[WhiteElo "2269"]
[BlackElo "2461"]
[TimeControl "180+1"]
[EndTime "10:32:57 PST"]
[Termination "Shuvalov won on time"]

1. d4 {[%clk 0:03:00.9]} 1... Nf6 {[%clk 0:02:56.3]} 2. c4 {[%clk 0:03:00.7]}
2... g6 {[%clk 0:02:56.2]} 3. Nc3 {[%clk 0:02:58.3]} 3... d5 {[%clk 0:02:55.7]}
4. cxd5 {[%clk 0:02:52.2]} 4... Nxd5 {[%clk 0:02:56.6]} 5. e4 {[%clk 0:02:51]}
5... Nxc3 {[%clk 0:02:55.9]} 6. bxc3 {[%clk 0:02:51.9]} 6... c5 {[%clk
0:02:56.2]} 7. Nf3 {[%clk 0:02:52.1]} 7... Bg7 {[%clk 0:02:56]} 8. Rb1 {[%clk
0:02:48.1]} 8... Qa5 {[%clk 0:02:51.5]} 9. Rb5 {[%clk 0:02:36.6]} 9... Qxc3+
{[%clk 0:02:46.7]} 10. Bd2 {[%clk 0:02:34.7]} 10... Qa3 {[%clk 0:02:44.1]} 11.
Rxc5 {[%clk 0:02:28.5]} 11... Nc6 {[%clk 0:02:41.1]} 12. Bb5 {[%clk 0:01:40.7]}
12... O-O {[%clk 0:02:30.2]} 13. Bxc6 {[%clk 0:01:31.8]} 13... bxc6 {[%clk
0:02:31.1]} 14. O-O {[%clk 0:01:24.9]} 14... Qxa2 {[%clk 0:02:26.2]} 15. Ne5
{[%clk 0:01:09.4]} 15... Bxe5 {[%clk 0:02:06]} 16. Rxe5 {[%clk 0:01:10.3]} 16...
Be6 {[%clk 0:01:58.6]} 17. Bc3 {[%clk 0:01:03.6]} 17... Rfd8 {[%clk 0:01:54.4]}
18. Qc1 {[%clk 0:00:59.9]} 18... Qc4 {[%clk 0:01:38]} 19. Rc5 {[%clk 0:00:54.3]}
19... Qd3 {[%clk 0:01:35.8]} 20. f3 {[%clk 0:00:48.2]} 20... Bd7 {[%clk
0:01:30.1]} 21. Rd1 {[%clk 0:00:45.7]} 21... Qe2 {[%clk 0:01:25.4]} 22. d5
{[%clk 0:00:28.7]} 22... Be8 {[%clk 0:01:12.5]} 23. Re1 {[%clk 0:00:12]} 23...
Qa6 {[%clk 0:01:10.3]} 24. Qh6 {[%clk 0:00:07.4]} 24... f6 {[%clk 0:01:07.8]}
25. Kh1 {[%clk 0:00:04.7]} 25... cxd5 {[%clk 0:01:05.9]} 26. Rxd5 {[%clk
0:00:03.4]} 26... Qc4 {[%clk 0:00:59.5]} 27. Rxd8 {[%clk 0:00:02.9]} 27... Rxd8
{[%clk 0:01:00.2]} 28. Ba1 {[%clk 0:00:01.6]} 28... Qc2 {[%clk 0:00:48.7]} 29.
Qc1 {[%clk 0:00:02]} 29... Qxc1 {[%clk 0:00:48.4]} 30. Rxc1 {[%clk 0:00:02.9]}
30... a5 {[%clk 0:00:47.3]} 31. e5 {[%clk 0:00:03.2]} 31... f5 {[%clk
0:00:46.1]} 32. h4 {[%clk 0:00:01.8]} 32... Kf7 {[%clk 0:00:46]} 33. Kh2 {[%clk
0:00:02.1]} 33... Ke6 {[%clk 0:00:46]} 34. Kg3 {[%clk 0:00:02.3]} 34... a4
{[%clk 0:00:46.2]} 35. Rc5 {[%clk 0:00:01.7]} 35... Ra8 {[%clk 0:00:43.8]} 0-1

[Event "*** Titled Tuesday Blitz"]
[Site "Chess.com"]
[Date "2020.11.24"]
[Round "2"]
[White "zverr1"]
[Black "Jumbo"]
[Result "0-1"]
[WhiteElo "2524"]
[BlackElo "2850"]
[TimeControl "180+1"]
[EndTime "10:32:58 PST"]
[Termination "Jumbo won by resignation"]

1. d4 {[%clk 0:03:00.9]} 1... g6 {[%clk 0:02:58]} 2. e4 {[%clk 0:02:58.8]} 2...
Bg7 {[%clk 0:02:58.5]} 3. Nc3 {[%clk 0:02:59.1]} 3... d6 {[%clk 0:02:54.4]} 4.
h3 {[%clk 0:02:59.1]} 4... Nf6 {[%clk 0:02:53.2]} 5. g4 {[%clk 0:02:57.5]} 5...
c5 {[%clk 0:02:50.3]} 6. Nge2 {[%clk 0:02:48.9]} 6... cxd4 {[%clk 0:02:40.8]} 7.
Nxd4 {[%clk 0:02:49.8]} 7... Nc6 {[%clk 0:02:35.7]} 8. Be3 {[%clk 0:02:45.7]}
8... h6 {[%clk 0:02:06.1]} 9. Qd2 {[%clk 0:02:41.1]} 9... Qa5 {[%clk 0:01:39.1]}
10. Bg2 {[%clk 0:02:32.4]} 10... Bd7 {[%clk 0:01:29.3]} 11. O-O-O {[%clk
0:02:23.5]} 11... Ne5 {[%clk 0:01:27.9]} 12. Nb3 {[%clk 0:02:14.5]} 12... Qc7
{[%clk 0:01:25.9]} 13. Nd5 {[%clk 0:01:58.3]} 13... Nxd5 {[%clk 0:01:24.3]} 14.
Qxd5 {[%clk 0:01:57.1]} 14... Nc4 {[%clk 0:01:07.4]} 15. Bd4 {[%clk 0:01:44.2]}
15... e6 {[%clk 0:00:57.8]} 16. Bxg7 {[%clk 0:01:44.7]} 16... exd5 {[%clk
0:00:57.9]} 17. Bxh8 {[%clk 0:01:45.3]} 17... dxe4 {[%clk 0:00:56.4]} 18. Bxe4
{[%clk 0:01:38.7]} 18... O-O-O {[%clk 0:00:55.4]} 19. Bf6 {[%clk 0:01:35.8]}
19... Re8 {[%clk 0:00:55.7]} 20. Rhe1 {[%clk 0:01:25.6]} 20... Bc6 {[%clk
0:00:54.8]} 21. Bd3 {[%clk 0:01:05.4]} 21... Rxe1 {[%clk 0:00:54.2]} 22. Rxe1
{[%clk 0:01:06.3]} 22... Ne5 {[%clk 0:00:54.5]} 23. Bxe5 {[%clk 0:00:59.4]}
23... dxe5 {[%clk 0:00:55.3]} 24. Nd2 {[%clk 0:00:50.8]} 24... Qe7 {[%clk
0:00:50.7]} 25. f4 {[%clk 0:00:44.5]} 25... Qh4 {[%clk 0:00:48.9]} 26. Kd1
{[%clk 0:00:29.2]} 26... exf4 {[%clk 0:00:46.2]} 27. Bc4 {[%clk 0:00:22.2]}
27... Qxh3 {[%clk 0:00:44.5]} 28. Bxf7 {[%clk 0:00:18.8]} 28... Qxg4+ {[%clk
0:00:44.3]} 29. Kc1 {[%clk 0:00:17.8]} 29... Qg3 {[%clk 0:00:44.5]} 30. Rf1
{[%clk 0:00:10.3]} 30... f3 {[%clk 0:00:43.4]} 31. Be6+ {[%clk 0:00:10.3]} 31...
Kc7 {[%clk 0:00:43.1]} 32. b3 {[%clk 0:00:10.6]} 32... g5 {[%clk 0:00:43.1]} 33.
c4 {[%clk 0:00:09]} 33... Qe5 {[%clk 0:00:40.6]} 34. Kc2 {[%clk 0:00:07.6]}
34... Qxe6 {[%clk 0:00:39.9]} 0-1

[Event "*** Titled Tuesday Blitz"]
[Site "Chess.com"]
[Date "2020.11.24"]
[Round "2"]
[White "AlexeiShirov"]
[Black "chenxiaoyuer"]
[Result "1-0"]
[WhiteElo "2824"]
[BlackElo "2517"]
[TimeControl "180+1"]
[EndTime "10:33:00 PST"]
[Termination "AlexeiShirov won by resignation"]

1. e4 {[%clk 0:03:00.9]} 1... c5 {[%clk 0:02:59.7]} 2. Nf3 {[%clk 0:03:00.4]}
2... d6 {[%clk 0:02:59.8]} 3. d4 {[%clk 0:03:00.5]} 3... cxd4 {[%clk 0:03:00.7]}
4. Nxd4 {[%clk 0:03:00.4]} 4... Nf6 {[%clk 0:03:00.7]} 5. Nc3 {[%clk 0:03:00.2]}
5... Nc6 {[%clk 0:03:00.3]} 6. Bg5 {[%clk 0:02:58.9]} 6... e6 {[%clk 0:03:00.1]}
7. Qd2 {[%clk 0:02:58.8]} 7... Qb6 {[%clk 0:02:59.9]} 8. O-O-O {[%clk
0:02:51.9]} 8... Qxd4 {[%clk 0:02:58]} 9. Qxd4 {[%clk 0:02:51.1]} 9... Nxd4
{[%clk 0:02:58.9]} 10. Rxd4 {[%clk 0:02:50.5]} 10... a6 {[%clk 0:02:59]} 11. Be2
{[%clk 0:02:33.5]} 11... Bd7 {[%clk 0:02:55.7]} 12. Rhd1 {[%clk 0:02:28.1]}
12... Bc6 {[%clk 0:02:54.8]} 13. f4 {[%clk 0:02:16.3]} 13... Be7 {[%clk
0:02:48.9]} 14. Bf3 {[%clk 0:02:14.6]} 14... Rd8 {[%clk 0:01:42.5]} 15. a4
{[%clk 0:01:52.7]} 15... h6 {[%clk 0:01:26.3]} 16. Bh4 {[%clk 0:01:51.9]} 16...
g5 {[%clk 0:01:21.9]} 17. fxg5 {[%clk 0:01:49.1]} 17... Nd7 {[%clk 0:00:53.1]}
18. Bg3 {[%clk 0:01:47.5]} 18... hxg5 {[%clk 0:00:52.9]} 19. Bxd6 {[%clk
0:01:31.1]} 19... Bxd6 {[%clk 0:00:45.7]} 20. Rxd6 {[%clk 0:01:30.8]} 20... Ke7
{[%clk 0:00:40]} 21. b4 {[%clk 0:01:24]} 21... Ne5 {[%clk 0:00:30.5]} 22. Rxd8
{[%clk 0:01:21.9]} 22... Rxd8 {[%clk 0:00:31.4]} 23. Rxd8 {[%clk 0:01:20.3]}
23... Kxd8 {[%clk 0:00:32.3]} 24. a5 {[%clk 0:01:17.3]} 24... Ke7 {[%clk
0:00:27.8]} 25. Kd2 {[%clk 0:01:15.8]} 25... Kd6 {[%clk 0:00:21.5]} 26. Ke3
{[%clk 0:01:15.6]} 26... Nc4+ {[%clk 0:00:21.1]} 27. Kd4 {[%clk 0:01:15.6]}
27... Ne5 {[%clk 0:00:20.7]} 28. Be2 {[%clk 0:01:13.8]} 28... Bd7 {[%clk
0:00:20.1]} 29. b5 {[%clk 0:01:08.4]} 29... axb5 {[%clk 0:00:18.4]} 30. Nxb5+
{[%clk 0:01:07.1]} 30... Bxb5 {[%clk 0:00:17.3]} 31. Bxb5 {[%clk 0:01:07.1]}
31... Ng6 {[%clk 0:00:14.5]} 32. c4 {[%clk 0:00:58.2]} 32... e5+ {[%clk
0:00:14.1]} 33. Kc3 {[%clk 0:00:57.7]} 33... Kc5 {[%clk 0:00:13.2]} 34. Be8
{[%clk 0:00:56.5]} 34... Nf4 {[%clk 0:00:10.9]} 35. g3 {[%clk 0:00:55.4]} 35...
Ne2+ {[%clk 0:00:10.8]} 36. Kd3 {[%clk 0:00:46.8]} 36... Nc1+ {[%clk 0:00:10.7]}
37. Ke3 {[%clk 0:00:45.8]} 37... f6 {[%clk 0:00:06.4]} 38. h4 {[%clk 0:00:45.3]}
38... gxh4 {[%clk 0:00:05.2]} 39. gxh4 {[%clk 0:00:44.6]} 1-0